bitfinex-derivatives/quotes_ETHF0:USTF0_20210705
["timestamp","ask_amount","ask_price","bid_price","bid_amount"]
[1625523208223,38.3616,2237.5,2236.0,40.7277]
[1625523208325,38.3616,2237.5,2236.0,44.0253]
[1625523208423,1.0,2237.4,2236.0,44.0253]
[1625523208523,1.0,2237.4,2236.1,16.164843]
[1625523209132,2.20527,2237.0,2236.8,2.20527]
[1625523209231,1.0,2236.9,2236.8,2.20527]
[1625523210388,1.0,2236.9,2236.0,40.7277]
[1625523210487,1.0,2236.9,2235.3,15.2187]
[1625523210590,1.0,2236.9,2235.2,54.5037]
[1625523211096,55.8056,2236.7,2235.2,54.5037]
[1625523211193,2.20527,2236.2,2236.0,2.20527]
[1625523211296,1.0,2236.1,2236.0,2.20527]
[1625523211394,1.0,2236.1,2235.3,16.30791]
[1625523211492,1.0,2236.1,2235.2,54.5037]
[1625523212944,2.20527,2236.2,2235.2,54.5037]
[1625523213145,3.20527,2236.2,2235.9,2.20527]
[1625523216055,3.20527,2236.2,2235.8,38.0581]
[1625523216154,3.20527,2236.2,2234.3,14.2733]
[1625523216258,5.43487,2236.2,2234.3,14.2733]
[1625523217068,40.4056,2235.7,2234.3,14.2733]
[1625523217175,2.20527,2235.3,2235.2,2.20527]
[1625523217278,3.20527,2235.3,2233.8,1.82202578]
[1625523217578,3.20527,2235.3,2233.3,0.8877]
[1625523217778,49.3742,2234.7,2233.3,0.8877]
[1625523217880,51.6151,2234.7,2233.3,0.8877]
[1625523217980,51.6151,2234.7,2233.2,1.82549294]
[1625523218087,52.6151,2234.7,2233.4,0.19790838]
[1625523218279,52.6151,2234.7,2233.2,1.82549294]
[1625523218280,52.6151,2234.7,2233.3,2.02364086]
[1625523218480,52.6151,2234.7,2233.5,16.148856]
[1625523218781,52.6151,2234.7,2233.4,16.110642]
[1625523218880,52.6151,2234.7,2233.7,43.6067]
[1625523218980,3.2409,2234.7,2233.7,43.6067]
[1625523219081,2.2409,2234.7,2233.7,43.6067]
[1625523219233,2.20527,2234.7,2234.6,2.20527]
[1625523219330,3.20527,2234.7,2234.6,2.20527]
[1625523219983,3.20527,2234.7,2233.3,6.58428758]
[1625523220080,5.83347,2234.7,2233.3,6.58428758]
[1625523220381,5.83347,2234.7,2233.0,1.82774864]
[1625523220630,5.83347,2234.7,2233.4,16.197205]
[1625523220792,5.83347,2234.7,2233.4,19.193505]
[1625523220994,5.83347,2234.7,2233.4,2.9963]
[1625523221281,2.20527,2234.3,2234.1,2.20527]
[1625523221386,2.20527,2234.3,2234.1,5.15197]
[1625523222593,3.20527,2234.7,2234.1,5.15197]
[1625523222693,2.20527,2234.7,2234.1,5.15197]
[1625523223045,2.20527,2234.7,2234.2,16.17116]
[1625523223244,2.20527,2234.7,2234.6,2.20527]
[1625523223345,2.20527,2234.7,2234.6,4.57017]
[1625523225154,2.20527,2234.8,2234.6,4.57017]
[1625523225556,2.20527,2234.8,2234.7,46.1803]
[1625523225757,1.0,2235.5,2234.7,46.1803]
[1625523225959,14.0946,2235.6,2234.7,46.1803]
[1625523226055,3.41518529,2237.2,2234.7,46.1803]
[1625523226158,60.5646,2236.7,2234.7,46.1803]
[1625523226264,60.5646,2236.7,2234.8,16.290712]
[1625523226365,55.8056,2236.7,2234.8,16.290712]
[1625523226868,1.0,2236.6,2234.8,16.290712]
[1625523227272,2.20527,2235.9,2235.6,2.20527]
[1625523227371,1.0,2235.8,2235.6,4.69307]
[1625523228231,1.0,2235.8,2235.6,2.4878]
[1625523228433,1.0,2235.8,2234.7,47.48416249]
[1625523228683,1.0,2235.8,2234.7,46.1803]
[1625523229033,1.0,2235.8,2234.2,16.28711226]
[1625523229235,2.20527,2234.4,2234.3,2.20527]
[1625523229333,5.76177,2234.4,2234.3,2.20527]
[1625523229537,5.76177,2234.4,2234.1,3.51140132]
[1625523229634,5.76177,2234.4,2234.1,2.20527]
[1625523230197,6.76177,2234.4,2234.1,2.20527]
[1625523230710,5.76177,2234.4,2234.1,2.20527]
[1625523232049,2.20527,2234.4,2234.1,2.20527]
[1625523232200,2.20527,2234.4,2234.2,16.182823]
[1625523232302,2.20527,2234.5,2234.2,19.589623]
[1625523232551,2.20527,2234.5,2234.4,44.7102]
[1625523232905,57.12069479,2236.7,2234.4,60.842329]
[1625523233008,57.12069479,2236.7,2234.4,62.14711721]
[1625523233107,1.0,2235.6,2234.9,1.15]
[1625523233215,1.0,2235.6,2234.9,4.0306]
[1625523233311,2.20527,2235.5,2235.3,2.20527]
[1625523236335,2.20527,2235.5,2235.2,54.4493]
[1625523237285,2.20527,2235.5,2235.4,2.20527]
[1625523237498,2.20527,2235.5,2235.4,5.61197]
[1625523239606,2.20527,2235.5,2235.4,3.4067]
[1625523239720,2.20527,2235.5,2235.2,54.4493]
[1625523241272,2.20527,2235.4,2235.3,2.20527]
[1625523245949,2.20527,2235.4,2235.3,18.572575]
[1625523246150,1.0,2236.6,2235.3,19.466675]
[1625523246354,1.0,2236.6,2235.3,18.572575]
[1625523246463,1.0,2236.6,2235.3,19.88033339]
[1625523247104,14.3034,2237.1,2235.3,19.88033339]
[1625523247202,1.0,2237.0,2236.2,46.4029]
[1625523247302,2.20527,2236.5,2236.4,2.20527]
[1625523249305,4.41054,2236.5,2236.4,2.20527]
[1625523253445,5.41054,2236.5,2236.4,2.20527]
[1625523254549,5.41054,2236.5,2235.8,1.15]
[1625523255347,4.41054,2235.9,2235.8,1.15]
[1625523255456,5.41054,2235.9,2235.8,1.15]
[1625523255547,5.41054,2235.9,2235.6,2.20527]
[1625523255750,5.41054,2235.9,2235.1,15.92840567]
[1625523255848,5.41054,2235.9,2234.9,1.30492853]
[1625523256148,5.41054,2235.9,2234.8,1.82689995]
[1625523256149,5.41054,2235.9,2234.8,1.30557652]
[1625523256248,4.41054,2235.9,2234.8,1.30557652]
[1625523256548,5.41054,2235.9,2234.9,16.206251]
[1625523256648,5.41054,2235.9,2234.9,18.449751]
[1625523256848,5.41054,2235.9,2235.0,1.50225782]
[1625523257048,5.41054,2235.9,2235.0,1.30400197]
[1625523257147,5.41054,2235.9,2235.1,16.345988]
[1625523257348,5.41054,2235.9,2235.2,45.8926]
[1625523257448,2.20527,2235.6,2235.5,2.20527]
[1625523264986,3.20527,2235.6,2235.2,1.30459539]
[1625523265186,3.20527,2235.6,2235.1,5.71e-05]
[1625523265282,3.20527,2235.6,2235.0,2.60923102]
[1625523265482,4.41054,2235.1,2235.0,2.60923102]
[1625523265581,8.05314,2235.1,2235.0,2.60923102]
[1625523265781,8.05314,2235.1,2235.0,1.82726234]
[1625523266082,8.05314,2235.1,2234.6,3.39348721]
[1625523266733,8.05314,2235.1,2233.9,17.23628197]
[1625523266832,13.05314,2235.1,2233.9,2.61678197]
[1625523267038,44.7902,2234.2,2233.9,2.61678197]
[1625523267144,3.3143,2234.1,2233.0,3.40658619]
[1625523267442,2.20527,2233.3,2233.2,2.20527]
[1625523267551,3.20527,2233.3,2233.2,2.20527]
[1625523267648,6.22907,2233.3,2233.2,2.40377884]
[1625523268101,6.22907,2233.3,2233.2,3.06697022]
[1625523268404,6.22907,2233.3,2233.2,2.86846138]
[1625523269214,6.22907,2233.3,2233.2,2.20527]
[1625523269511,8.43434,2233.3,2233.2,2.20527]
[1625523270011,46.10664,2233.3,2233.2,2.20527]
[1625523270563,8.43434,2233.3,2233.2,2.20527]
[1625523270974,1.0,2233.8,2233.2,2.20527]
[1625523271072,69.9784,2235.1,2233.2,4.89677]
[1625523271370,51.5551,2234.0,2233.3,16.123704]
[1625523271472,4.41054,2233.4,2233.3,16.123704]
[1625523271669,7.71404,2233.4,2233.2,2.20527]
[1625523271972,7.71404,2233.4,2232.3,3.41634141]
[1625523272073,7.71404,2233.4,2232.2,3.41749212]
[1625523272074,1.0,2233.3,2232.2,3.41749212]
[1625523272423,1.0,2233.3,2232.0,3.41961941]
[1625523272875,1.0,2233.3,2231.9,5.6629]
[1625523272977,1.0,2233.3,2231.9,4.759]
[1625523273076,47.7109,2232.3,2231.9,4.759]
[1625523273178,3.6692,2232.2,2231.9,4.759]
[1625523273376,3.6692,2232.2,2231.6,3.419223]
[1625523273487,4.41054,2231.7,2231.6,3.419223]
[1625523273585,4.41054,2231.7,2231.4,3.42096509]
[1625523273785,3.34895742,2231.7,2231.5,3.61923316]
[1625523273987,3.34895742,2231.7,2231.6,0.19810264]
[1625523274437,3.34895742,2231.7,2231.6,0.86161894]
[1625523274739,4.34895742,2231.7,2231.6,0.86161894]
[1625523274839,4.34895742,2231.7,2231.6,0.19810264]
[1625523275496,4.34895742,2231.7,2231.6,2.40337264]
[1625523276248,1.0,2231.7,2231.6,2.40337264]
[1625523276554,2.7182,2232.8,2231.6,2.40337264]
[1625523276649,1.0,2232.7,2231.7,0.19777951]
[1625523276753,51.5551,2234.0,2231.7,0.19777951]
[1625523276952,51.5551,2234.0,2231.7,16.43678751]
[1625523277252,51.5551,2234.0,2231.7,16.239008]
[1625523277552,2.20527,2232.3,2232.2,2.20527]
[1625523277751,3.20527,2232.3,2232.2,2.20527]
[1625523277851,3.20527,2232.3,2231.5,51.1993]
[1625523278803,3.20527,2232.3,2231.0,3.41573915]
[1625523279002,3.20527,2232.3,2231.1,0.19739215]
[1625523279454,3.20527,2232.3,2231.2,16.26564]
[1625523279556,2.20527,2231.6,2231.4,2.20527]
[1625523279656,1.0,2231.5,2231.4,2.20527]
[1625523279854,1.0,2231.5,2231.4,3.09107]
[1625523280055,1.0,2231.5,2231.4,18.609739]
[1625523280266,2.20527,2231.6,2231.4,18.609739]
[1625523280365,2.20527,2231.6,2231.4,21.407839]
[1625523280466,1.0,2231.9,2231.4,21.407839]
[1625523280568,42.5967,2233.2,2231.8,47.3885]
[1625523280916,42.5967,2233.2,2231.9,16.164735]
[1625523281020,73.38987654,2235.1,2232.3,3.4638]
[1625523281217,73.38987654,2235.1,2232.3,4.3725]
[1625523281318,1.0,2234.0,2232.3,4.3725]
[1625523281419,1.0,2233.8,2232.4,16.269443]
[1625523281517,2.20527,2233.2,2233.1,2.20527]
[1625523281619,3.20527,2233.2,2233.1,2.20527]
[1625523282937,3.20527,2233.2,2232.3,1.15]
[1625523283539,2.20527,2232.4,2232.3,1.15]
[1625523283641,3.20527,2232.4,2232.3,1.15]
[1625523283738,1.0,2232.4,2232.3,1.15]
[1625523283940,5.0,2234.9,2232.3,1.15]
[1625523284039,1.0,2234.0,2232.3,3.7392]
[1625523284341,1.0,2234.0,2232.4,16.303207]
[1625523285545,4.41054,2232.5,2232.3,1.15]
[1625523285647,1.0,2232.4,2232.3,1.15]
[1625523287567,1.0,2232.4,2232.3,3.35527]
[1625523289318,1.0,2232.4,2232.3,2.20527]
[1625523289422,4.3128,2232.4,2232.3,2.20527]
[1625523289619,8.72334,2232.4,2231.7,2.20527]
[1625523290372,8.72334,2232.4,2231.5,2.20527]
[1625523291640,2.20527,2231.9,2231.5,2.20527]
[1625523291738,1.0,2231.8,2231.5,2.20527]
[1625523295146,4.41054,2231.9,2231.5,2.20527]
[1625523295247,1.0,2231.9,2231.5,5.40217]
[1625523295648,1.0,2231.9,2231.8,2.20527]
[1625523297612,1.0,2231.9,2231.5,2.20527]
[1625523297717,3.20527,2231.9,2231.5,2.20527]
[1625523299723,3.20527,2231.9,2231.8,2.20527]
[1625523301683,5.41054,2231.9,2231.8,2.20527]
[1625523303347,5.41054,2231.9,2231.5,2.20527]
[1625523303751,2.20527,2231.6,2231.5,2.20527]
[1625523303850,6.70657,2231.6,2231.3,0.05]
[1625523304250,38.8838,2231.4,2231.3,0.05]
[1625523304351,39.8838,2231.4,2231.3,0.05]
[1625523304752,39.8838,2231.4,2230.1,0.9037]
[1625523305555,39.8838,2231.4,2229.5,4.759]
[1625523305756,2.20527,2230.6,2230.5,2.20527]
[1625523305856,6.45817,2230.6,2230.5,2.20527]
[1625523306356,5.45817,2230.6,2230.5,2.20527]
[1625523307573,6.45817,2230.6,2230.5,2.20527]
[1625523307671,5.45817,2230.6,2230.5,2.20527]
[1625523307774,7.66344,2230.6,2230.5,2.20527]
[1625523308975,6.60125651,2230.6,2230.5,2.20527]
[1625523309527,7.60125651,2230.6,2230.5,2.20527]
[1625523310005,7.60125651,2230.6,2230.0,0.05]
[1625523310782,56.3683,2230.2,2230.0,0.05]
[1625523310883,1.0,2230.1,2230.0,0.05]
[1625523310981,3.9523,2230.1,2230.0,0.05]
[1625523311833,8.36284,2230.1,2230.0,0.05]
[1625523312033,8.36284,2230.1,2230.0,0.951]
[1625523312151,2.20527,2230.1,2230.0,0.951]
[1625523312235,2.20527,2230.1,2230.0,0.05]
[1625523312384,3.20527,2230.1,2230.0,0.05]
[1625523313189,5.94267,2230.1,2230.0,0.05]
[1625523313397,5.94267,2230.1,2228.6,5.6472]
[1625523313522,5.94267,2230.1,2228.6,4.759]
[1625523313596,10.94267,2230.1,2228.6,4.759]
[1625523313705,10.94267,2230.1,2227.9,5.6599]
[1625523313790,4.41054,2228.7,2228.4,2.20527]
[1625523313886,1.0,2228.6,2228.4,2.20527]
[1625523314093,55.2569,2228.5,2228.4,2.20527]
[1625523314194,56.2569,2228.5,2228.2,2.20527]
[1625523315350,56.2569,2228.5,2227.1,19.3891]
[1625523315556,1.0,2228.5,2227.1,19.3891]
[1625523315700,1.0,2228.5,2227.1,4.759]
[1625523315820,1.0,2228.5,2228.4,2.20527]
[1625523316000,1.0,2228.7,2228.4,2.20527]
[1625523316099,14.0368,2230.3,2228.4,53.54677]
[1625523316482,42.9679,2231.4,2228.4,53.54677]
[1625523316666,42.9679,2231.4,2228.4,2.20527]
[1625523316764,14.3765,2231.3,2228.4,2.20527]
[1625523316871,5.0,2230.3,2228.4,2.20527]
[1625523316977,1.0,2230.2,2228.4,2.20527]
[1625523317414,4.1293,2230.2,2228.4,2.20527]
[1625523317513,5.0,2230.1,2228.2,2.20527]
[1625523317615,1.0,2230.0,2227.9,4.759]
[1625523317816,4.53787,2228.0,2227.9,4.759]
[1625523317928,5.53787,2228.0,2227.9,4.759]
[1625523318421,5.53787,2228.0,2227.5,2.20527]
[1625523319819,2.20527,2227.6,2227.5,2.20527]
[1625523319922,3.20527,2227.6,2227.5,2.20527]
[1625523320221,3.20527,2227.6,2226.0,14.4969]
[1625523320566,3.20527,2227.6,2225.9,4.759]
[1625523320924,3.20527,2227.6,2226.1,16.417616]
[1625523321172,3.20527,2227.6,2226.0,16.416778]
[1625523321272,3.20527,2227.6,2225.9,4.759]
[1625523321472,3.20527,2227.6,2225.1,18.9437]
[1625523321572,3.20527,2227.6,2226.2,16.301189]
[1625523321774,8.20527,2227.6,2226.0,16.24207]
[1625523321873,2.20527,2226.3,2225.2,16.401049]
[1625523321976,1.0,2226.2,2225.2,16.401049]
[1625523322174,4.73707,2226.3,2225.1,4.759]
[1625523322273,2.20527,2226.3,2225.1,4.759]
[1625523322481,2.20527,2226.3,2225.2,16.36452]
[1625523322682,2.20527,2226.3,2225.6,1.15]
[1625523323007,2.20527,2226.3,2225.7,16.410301]
[1625523323396,3.20527,2226.3,2225.7,16.410301]
[1625523323495,3.20527,2226.3,2224.4,67.8059]
[1625523323595,3.20527,2226.3,2224.0,30.3437]
[1625523323696,6.22047,2226.3,2224.0,30.3437]
[1625523323800,2.20527,2225.0,2224.8,2.20527]
[1625523324197,1.6155701,2225.2,2224.9,16.431677]
[1625523324499,1.6155701,2225.2,2224.8,2.20527]
[1625523324802,1.0,2225.1,2224.8,2.20527]
[1625523324999,2.6155701,2225.2,2224.8,2.20527]
[1625523325101,1.6155701,2225.2,2224.8,2.20527]
[1625523325363,3.30785796,2231.1,2224.8,2.20527]
[1625523325468,0.8941,2230.6,2224.8,2.20527]
[1625523325563,54.5627,2228.5,2224.8,4.67067]
[1625523325664,49.5627,2228.5,2224.8,4.67067]
[1625523325766,49.5627,2228.5,2225.3,1.15]
[1625523325864,17.13777,2227.1,2226.9,2.20527]
[1625523325969,17.13777,2227.1,2226.9,4.60007]
[1625523326264,17.13777,2227.1,2226.9,2.3948]
[1625523326370,2.20527,2227.1,2226.9,2.3948]
[1625523327819,2.20527,2227.0,2226.9,2.3948]
[1625523327923,1.0,2227.9,2226.8,2.20527]
[1625523328220,1.0,2227.9,2225.3,1.15]
[1625523328358,4.0246,2227.9,2225.3,1.15]
[1625523328428,9.0246,2227.9,2225.3,1.15]
[1625523328631,9.0246,2227.9,2223.7,7.8831]
[1625523328819,4.0246,2227.9,2223.7,7.8831]
[1625523329022,4.0246,2227.9,2225.0,16.363787]
[1625523329873,2.20527,2225.6,2225.5,2.20527]
[1625523330171,2.20527,2225.6,2225.5,18.627209]
[1625523330272,2.20527,2225.8,2225.5,18.627209]
[1625523331726,2.20527,2225.8,2225.5,21.890709]
[1625523331830,2.20527,2226.6,2225.7,2.20527]
[1625523331977,3.29234373,2232.7,2225.7,2.20527]
[1625523332080,3.1269,2229.7,2226.0,1.15]
[1625523332176,3.1269,2229.7,2226.0,3.6526]
[1625523332428,3.1269,2229.7,2226.1,16.191639]
[1625523332529,1.0,2228.3,2226.1,16.191639]
[1625523332729,1.0,2228.3,2226.0,3.6526]
[1625523333129,1.0,2228.3,2226.0,1.15]
[1625523333434,1.0,2228.3,2225.8,4.759]
[1625523333935,7.44904,2225.9,2225.8,4.759]
[1625523334436,7.44904,2225.9,2225.7,2.20527]
[1625523334638,3.0385,2225.9,2225.7,2.20527]
[1625523335137,2.5857,2227.4,2225.8,16.332478]
[1625523335238,1.0,2227.3,2225.8,16.332478]
[1625523335638,41.0034,2226.8,2225.8,16.332478]
[1625523335738,42.0034,2226.8,2225.6,2.1463]
[1625523335840,44.9739,2226.8,2225.6,2.1463]
[1625523335943,4.41054,2225.7,2225.6,2.1463]
[1625523336343,2.20527,2225.7,2225.5,2.20527]
[1625523336945,2.20527,2225.7,2225.6,16.411199]
[1625523337342,41.0034,2226.8,2225.6,16.411199]
[1625523337442,1.0,2227.2,2225.6,16.411199]
[1625523337745,14.6462,2228.4,2225.6,16.411199]
[1625523337844,1.0,2228.3,2225.6,16.411199]
[1625523337945,2.20527,2227.4,2227.3,2.20527]
[1625523338050,2.20527,2227.4,2227.3,3.3041]
[1625523339815,2.20527,2227.4,2227.1,2.20527]
[1625523339917,2.20527,2227.4,2227.3,2.20527]
[1625523340266,2.20527,2227.6,2227.3,2.20527]
[1625523340918,2.20527,2227.6,2227.4,16.340326]
[1625523341023,2.20527,2227.6,2227.4,18.636026]
[1625523341418,52.9269,2228.8,2227.4,18.636026]
[1625523341419,53.9269,2228.8,2227.4,18.636026]
[1625523341520,52.9269,2228.8,2227.4,18.636026]
[1625523341622,14.7741,2230.3,2227.4,18.636026]
[1625523341773,14.7741,2230.3,2227.9,1.15]
[1625523341875,14.7741,2230.3,2227.9,3.6128]
[1625523341972,2.20527,2228.2,2227.9,3.6128]
[1625523342075,2.20527,2228.2,2228.0,16.305975]
[1625523342376,2.20527,2228.4,2228.0,16.305975]
[1625523343928,2.20527,2228.4,2228.3,4.41054]
[1625523344429,3.20527,2228.4,2228.3,2.20527]
[1625523344632,3.20527,2228.4,2225.9,5.0]
[1625523345035,3.20527,2228.4,2227.3,1.15]
[1625523345435,1.0,2228.4,2227.3,3.8634]
[1625523345735,2.20527,2228.6,2227.3,3.8634]
[1625523345885,2.20527,2228.6,2227.4,16.351802]
[1625523345886,3.20527,2228.6,2227.4,16.351802]
[1625523345986,5.41054,2228.6,2228.1,2.20527]
[1625523346095,2.20527,2228.6,2228.1,4.49957]
[1625523346201,14.7611,2230.1,2228.1,4.49957]
[1625523346287,14.7611,2230.1,2228.2,16.216884]
[1625523346988,1.0,2230.0,2228.2,16.216884]
[1625523347499,4.3696,2230.0,2228.1,2.20527]
[1625523347974,2.20527,2228.5,2228.4,2.20527]
[1625523348074,2.20527,2228.5,2228.4,4.40827]
[1625523348473,2.20527,2228.5,2228.4,20.665927]
[1625523348676,1.0,2230.0,2228.4,20.665927]
[1625523349581,1.0,2230.0,2228.4,4.40827]
[1625523349981,2.20527,2228.8,2228.7,2.20527]
[1625523352489,3.20527,2228.8,2227.9,1.15]
[1625523352994,5.51457,2228.8,2227.9,1.15]
[1625523354101,5.51457,2228.8,2228.1,2.20527]
[1625523354201,5.51457,2228.8,2227.9,3.35527]
[1625523354301,5.51457,2228.8,2227.9,2.20527]
[1625523354402,5.51457,2228.8,2226.9,29.6402]
[1625523355311,5.51457,2228.8,2227.0,16.273959]
[1625523355609,5.51457,2228.8,2226.9,29.6402]
[1625523356109,2.20527,2227.5,2227.3,2.20527]
[1625523356712,1.0,2227.9,2227.3,2.20527]
[1625523358064,4.41054,2227.4,2227.3,2.20527]
[1625523358164,8.63344,2227.4,2227.3,2.20527]
[1625523358365,8.63344,2227.4,2226.9,14.7757]
[1625523358464,7.63344,2227.4,2226.9,14.7757]
[1625523360071,2.20527,2227.1,2226.9,16.98097]
[1625523360370,2.20527,2227.4,2226.9,16.98097]
[1625523360470,2.20527,2227.4,2226.9,19.62077]
[1625523360569,1.0,2228.2,2226.9,19.62077]
[1625523360771,1.0,2228.2,2227.0,16.269104]
[1625523361523,1.0,2228.2,2226.9,19.62077]
[1625523362072,2.20527,2227.6,2227.5,2.20527]
[1625523362370,1.0,2228.2,2227.5,2.20527]
[1625523363373,1.0,2228.2,2227.5,5.73537]
[1625523363587,1.0,2228.4,2227.5,5.73537]
[1625523363824,40.1698,2228.9,2227.5,5.73537]
[1625523364092,2.20527,2228.4,2228.1,2.20527]
[1625523364200,2.20527,2228.6,2228.1,4.92697]
[1625523364977,2.20527,2228.6,2228.2,16.398303]
[1625523366147,2.20527,2228.6,2228.5,2.20527]
[1625523366446,2.20527,2228.6,2228.5,18.48776]
[1625523366746,2.20527,2228.6,2228.1,2.20527]
[1625523366949,4.98197,2228.6,2228.1,2.20527]
[1625523367251,5.98197,2228.6,2228.1,2.20527]
[1625523368116,2.20527,2228.2,2228.1,2.20527]
[1625523368476,2.20527,2228.2,2227.8,2.20527]
[1625523368992,3.20527,2228.2,2227.8,2.20527]
[1625523369480,3.20527,2228.2,2226.9,14.7757]
[1625523370122,2.20527,2227.6,2227.3,2.20527]
[1625523370221,5.71187,2227.6,2227.3,2.20527]
[1625523372123,5.71187,2227.6,2227.5,2.20527]
[1625523372440,5.71187,2227.6,2226.9,14.7757]
[1625523373879,6.71187,2227.6,2226.9,14.7757]
[1625523374182,6.71187,2227.6,2227.2,2.20527]
[1625523374281,5.71187,2227.6,2227.2,2.20527]
[1625523374380,6.71187,2227.6,2227.2,2.20527]
[1625523375937,5.71187,2227.6,2227.2,2.20527]
[1625523376037,1.0,2228.5,2227.2,4.38657]
[1625523376137,2.20527,2228.2,2228.0,2.20527]
[1625523376322,2.20527,2228.2,2228.0,5.19827]
[1625523376995,4.759,2233.1,2228.0,5.19827]
[1625523377100,1.0,2229.0,2228.1,16.33746]
[1625523377701,1.0,2229.0,2228.0,5.19827]
[1625523378153,2.20527,2228.9,2228.6,2.20527]
[1625523378253,52.1577,2228.8,2228.6,2.20527]
[1625523378352,52.1577,2228.8,2228.6,5.41477]
[1625523380166,52.1577,2228.8,2228.6,7.62004]
[1625523380824,2.20527,2228.9,2228.6,7.62004]
[1625523383879,2.20527,2229.2,2228.6,7.62004]
[1625523384130,2.20527,2229.2,2229.1,1.15]
[1625523384230,2.20527,2229.2,2229.1,5.56054]
[1625523384334,2.20527,2229.2,2229.1,9.07574]
[1625523385734,1.0,2230.2,2229.1,9.07574]
[1625523386288,2.20527,2229.9,2229.7,2.20527]
[1625523386590,3.20527,2229.9,2229.7,2.20527]
[1625523387193,5.35887,2229.9,2229.1,3.35527]
[1625523388260,2.20527,2229.2,2229.1,3.35527]
[1625523388654,3.1536,2229.9,2229.1,3.35527]
[1625523388854,3.1483,2230.4,2229.1,3.35527]
[1625523388954,40.8871,2231.1,2229.1,6.74527]
[1625523389058,40.8871,2231.1,2229.2,16.268125]
[1625523389706,40.8871,2231.1,2229.7,1.15]
[1625523389856,40.8871,2231.1,2229.7,4.2527]
[1625523389967,1.0,2231.0,2229.7,4.2527]
[1625523390065,1.0,2231.0,2229.8,16.283515]
[1625523390265,2.20527,2230.3,2230.2,2.20527]
[1625523390367,2.20527,2230.3,2230.2,5.26867]
[1625523392219,2.20527,2230.3,2230.2,21.540689]
[1625523392769,2.20527,2230.3,2230.2,5.26867]
[1625523395075,2.20527,2230.3,2230.2,2.20527]
[1625523396480,2.20527,2230.3,2229.9,2.20527]
[1625523397136,5.11637,2230.3,2229.9,2.20527]
[1625523397236,1.0,2230.2,2229.9,2.20527]
[1625523397336,1.0,2230.2,2229.7,1.15]
[1625523397635,1.0,2230.2,2228.2,14.1561]
[1625523398135,1.0,2230.2,2228.3,0.19884761]
[1625523398336,2.20527,2229.3,2229.2,2.20527]
[1625523398738,3.20527,2229.3,2229.2,2.20527]
[1625523400291,5.41054,2229.3,2229.2,2.20527]
[1625523400391,5.41054,2229.3,2228.7,1.15]
[1625523401705,2.20527,2229.3,2228.7,1.15]
[1625523401905,1.0,2229.9,2228.8,16.184617]
[1625523402358,2.20527,2229.4,2229.2,2.20527]
[1625523403111,1.0,2229.3,2229.2,2.20527]
[1625523403515,1.0,2229.3,2228.7,1.15]
[1625523404369,1.0,2229.3,2228.9,2.20527]
[1625523406322,2.20527,2229.0,2228.9,4.41054]
[1625523406424,3.20527,2229.0,2228.9,4.41054]
[1625523406773,2.20527,2229.0,2228.9,4.41054]
[1625523407173,3.20527,2229.0,2228.9,4.41054]
[1625523410297,3.20527,2229.0,2227.4,2.62835616]
[1625523410386,6.54137,2229.0,2228.6,2.20527]
[1625523410736,6.54137,2229.0,2227.3,3.5391813]
[1625523411140,6.54137,2229.0,2227.3,0.911]
[1625523411489,6.54137,2229.0,2227.3,3.53944699]
[1625523411690,6.54137,2229.0,2227.3,3.58944699]
[1625523412389,6.54137,2229.0,2228.8,2.20527]
[1625523413142,6.54137,2229.0,2227.7,2.3538]
[1625523413285,6.54137,2229.0,2227.3,3.58944699]
[1625523413354,6.54137,2229.0,2227.3,2.62844699]
[1625523413458,11.54137,2229.0,2227.4,0.19908035]
[1625523413650,11.54137,2229.0,2227.3,2.62844699]
[1625523413761,11.54137,2229.0,2227.2,14.5523]
[1625523414052,53.8178,2227.5,2227.2,14.5523]
[1625523414148,57.1418,2227.5,2227.2,14.5523]
[1625523414350,57.1418,2227.5,2226.7,14.6863]
[1625523414450,2.20527,2227.4,2227.3,2.20527]
[1625523414548,3.20527,2227.4,2227.3,2.20527]
[1625523414898,2.20527,2227.4,2227.3,2.20527]
[1625523415598,2.20527,2227.4,2227.3,18.608363]
[1625523415798,1.0,2228.3,2227.3,18.608363]
[1625523416401,2.20527,2228.1,2228.0,2.20527]
[1625523416499,3.20527,2228.1,2228.0,2.20527]
[1625523418472,5.41054,2228.1,2228.0,2.20527]
[1625523418673,5.41054,2228.1,2227.8,2.20527]
[1625523420432,5.41054,2228.1,2227.8,4.41054]
[1625523422145,8.73684,2228.1,2227.8,2.20527]
[1625523424101,5.41054,2228.1,2227.8,2.20527]
[1625523424602,3.20527,2228.1,2227.8,2.20527]
[1625523430538,2.20527,2228.0,2227.8,2.20527]
[1625523430639,1.0,2227.9,2227.8,2.20527]
[1625523433596,2.20527,2228.0,2227.8,2.20527]
[1625523433699,1.0,2228.2,2227.8,2.20527]
[1625523433798,69.9717,2228.7,2227.8,2.20527]
[1625523433997,42.5586,2229.9,2227.8,2.20527]
[1625523434550,2.20527,2229.5,2229.4,2.20527]
[1625523434750,3.20527,2229.5,2229.4,4.88877]
[1625523435800,2.20527,2229.5,2229.4,4.88877]
[1625523436052,43.5586,2229.9,2229.4,4.88877]
[1625523436162,1.0,2229.9,2229.4,4.88877]
[1625523436606,1.0,2229.9,2229.8,2.20527]